bitfinex/quotes_SOLUSD_20251208
["timestamp","ask_amount","ask_price","bid_price","bid_amount"]
[1765194073216,2.82156012,139.04,139.01,15.07372706]
[1765194073614,2.12156012,139.02,139.01,7.88]
[1765194074100,2.82156012,139.02,139.01,7.88]
[1765194077320,10.01476973,139.02,139.01,7.88]
[1765194077622,2.82156012,139.02,139.01,7.88]
[1765194078817,10.01476973,139.02,138.95,2.12156012]
[1765194079022,2.12156012,138.99,138.96,7.88]
[1765194079253,2.12156012,138.98,138.96,7.88]
[1765194079527,2.12156012,138.97,138.96,7.88]
[1765194079822,2.82156012,138.97,138.92,2.12156012]
[1765194080022,0.7,138.97,138.94,7.88]
[1765194080226,2.12156012,138.99,138.94,10.00156012]
[1765194080615,0.7,138.99,138.94,10.00156012]
[1765194081226,2.82156012,138.99,138.95,7.19683339]
[1765194081523,2.78156012,138.98,138.95,7.19683339]
[1765194081916,2.78156012,138.97,138.94,15.07729528]
[1765194082331,0.66,138.96,138.94,7.88]
[1765194082521,2.78156012,138.96,138.94,7.88]
[1765194082719,0.66,138.96,138.94,7.88]
[1765194083126,0.66,138.95,138.94,7.88]
[1765194084213,2.78156012,138.95,138.94,7.88]
[1765194084517,9.97839351,138.95,138.91,7.19877015]
[1765194084720,0.66,138.94,138.91,15.07877015]
[1765194085030,6.18990194,138.94,138.91,15.07877015]
[1765194085410,0.66,138.93,138.91,15.07877015]
[1765194085733,6.18990194,138.93,138.91,7.88]
[1765194086039,6.18990194,138.93,138.9,7.88]
[1765194086236,0.66,138.93,138.9,7.88]
[1765194087436,0.66,138.93,138.9,15.07902286]
[1765194087631,29.69546872,138.96,138.9,20.6089248]
[1765194087936,0.66,138.95,138.9,20.6089248]
[1765194088137,5.52990194,138.94,138.9,15.07902286]
[1765194088528,0.66,138.93,138.9,15.07902286]
[1765194088713,41.49635549,138.96,138.9,20.6089248]
[1765194088714,7.85670278,138.96,138.9,20.6089248]
[1765194088913,13.38660472,138.96,138.91,5.52990194]
[1765194089436,0.66,138.95,138.91,5.52990194]
[1765194089639,0.66,138.95,138.92,7.19838756]
[1765194089812,5.52990194,139.0,138.92,25.19435646]
[1765194090019,35.96325285,139.04,138.92,25.19435646]
[1765194090020,6.18990194,139.01,138.95,5.52990194]
[1765194090221,6.18990194,139.01,138.96,5.52990194]
[1765194090421,0.66,139.01,138.96,13.40990194]
[1765194091639,0.66,139.01,138.97,7.19579765]
[1765194091838,24.16173446,139.03,138.98,5.52990194]
[1765194092134,7.85287046,139.03,138.99,5.52990194]
[1765194092535,0.66,139.02,138.99,5.52990194]
[1765194092931,0.66,139.02,138.99,12.72455202]
[1765194094746,0.66,139.02,138.99,7.19465008]
[1765194101538,0.66,139.02,138.99,5.52990194]
[1765194102458,0.66,139.02,138.97,30.71519372]
[1765194102626,0.66,139.02,138.98,5.52990194]
[1765194103051,7.85322668,139.02,138.97,30.71519372]
[1765194103259,13.38312862,139.02,138.97,30.71519372]
[1765194103557,0.66,139.01,138.97,30.71519372]
[1765194103736,5.52990194,139.0,138.96,76.97612316]
[1765194103938,5.52990194,139.0,138.96,7.19612316]
[1765194104244,0.66,138.99,138.96,7.19612316]
[1765194105129,0.66,138.99,138.96,12.7260251]
[1765194105352,0.66,139.01,138.98,5.52990194]
[1765194106432,0.66,139.01,138.98,7.19500739]
[1765194106634,9.97540089,139.01,138.96,9.3175882]
[1765194106940,2.12155237,139.0,138.96,7.19603583]
[1765194107148,2.78155237,139.0,138.96,7.19603583]
[1765194107344,0.66,138.99,138.96,7.19603583]
[1765194109740,7.85482536,138.99,138.95,7.19667695]
[1765194110160,0.66,138.98,138.95,7.19667695]
[1765194112845,3.97604677,138.98,138.95,7.19667695]
[1765194113060,0.69,138.97,138.94,15.0772092]
[1765194122179,7.88584105,138.97,138.94,15.0772092]
[1765194122381,3.31604677,138.96,138.91,3.31604677]
[1765194122555,3.31604677,138.96,138.92,7.198172]
[1765194122756,0.66,138.95,138.93,7.1978579]
[1765194124177,0.66,138.95,138.92,7.19838756]
[1765194124772,3.31604677,138.93,138.9,7.88]
[1765194124951,3.31604677,138.93,138.9,7.19931555]
[1765194125156,0.66,138.92,138.9,7.19931555]
[1765194126084,3.97604677,138.92,138.88,7.88]
[1765194126454,0.66,138.91,138.88,15.08024409]
[1765194136780,0.66,138.91,138.88,33.08139616]
[1765194138293,11.17419591,138.93,138.88,33.08139616]
[1765194138502,0.66,138.92,138.88,33.08139616]
[1765194141598,3.97604677,138.92,138.88,33.08139616]
[1765194141895,0.72,138.91,138.88,33.08139616]
[1765194143173,0.72,138.94,138.9,3.31604677]
[1765194143374,10.51243211,138.96,138.91,3.31604677]
[1765194143789,0.72,138.95,138.91,3.31604677]
[1765194145000,0.72,138.95,138.92,7.19838756]
[1765194147003,0.72,138.95,138.92,25.19435646]
[1765194147979,0.72,138.95,138.92,28.51040323]
[1765194149091,0.72,138.95,138.92,36.39040323]
[1765194150489,0.72,138.95,138.92,33.07435646]
[1765194150914,0.72,138.95,138.92,15.07838756]
[1765194151483,4.03604677,138.95,138.92,15.07838756]
[1765194151701,0.72,138.94,138.92,15.07838756]
[1765194152700,4.03604677,138.94,138.89,3.31604677]
[1765194153010,4.03604677,138.94,138.89,11.19604677]
[1765194153217,4.03604677,138.93,138.89,7.88]
[1765194153507,0.72,138.92,138.89,7.88]
[1765194153719,0.72,138.92,138.9,7.19914406]
[1765194156215,0.72,138.92,138.89,11.19604677]
[1765194156385,0.72,138.94,138.89,36.39550348]
[1765194156583,0.72,138.93,138.89,36.39550348]
[1765194158105,0.72,138.93,138.9,3.31604677]
[1765194158710,0.72,138.93,138.89,36.39550348]
[1765194159903,0.72,138.93,138.89,33.07945671]
[1765194160210,4.03604677,138.93,138.89,33.07945671]
[1765194160803,0.72,138.92,138.89,33.07945671]
[1765194161308,4.03604677,138.92,138.89,15.07960071]
[1765194161690,0.72,138.91,138.89,15.07960071]
[1765194164515,0.72,138.92,138.89,15.07960071]
[1765194165102,4.03604677,138.92,138.89,7.19960071]
[1765194165601,0.72,138.91,138.89,7.19960071]
[1765194166408,0.72,138.91,138.88,7.20046082]
[1765194166713,0.72,138.91,138.88,10.51650759]
[1765194168995,0.72,138.93,138.88,28.51765966]
[1765194169197,0.72,138.93,138.89,11.19604677]
[1765194170709,10.51308381,138.95,138.9,7.19942404]
[1765194170910,21.30370108,138.99,138.93,3.31604677]
[1765194171215,0.69,138.96,138.93,11.19604677]
[1765194172206,0.69,138.96,138.94,7.19735137]
[1765194172994,10.00895888,138.96,138.91,7.198396]
[1765194173210,2.12251446,138.95,138.91,7.198396]
[1765194173409,2.81251446,138.95,138.91,7.198396]
[1765194173618,0.69,138.94,138.91,7.198396]
[1765194175819,2.12251446,138.92,138.89,7.19971243]
[1765194176122,0.69,138.91,138.89,7.19971243]
[1765194179349,0.69,138.91,138.88,15.0802538]
[1765194179698,10.01149809,138.91,138.87,7.400935]
[1765194180113,0.67,138.9,138.87,7.400935]
[1765194180824,2.12251446,138.89,138.87,0.2]
[1765194181222,0.67,138.88,138.87,0.2]
[1765194183145,7.87046082,138.88,138.87,0.2]
[1765194184133,0.67,138.88,138.87,0.2]
[1765194196865,2.79251446,138.88,138.87,0.2]
[1765194197045,9.99297528,138.88,138.87,0.2]
[1765194197963,9.99297528,138.88,138.79,2.32251446]
[1765194198264,9.32511311,138.84,138.8,7.20461095]
[1765194198646,0.67,138.83,138.8,7.20461095]
[1765194199466,2.79251446,138.83,138.79,7.20490092]
[1765194199858,0.67,138.82,138.79,7.20490092]
[1765194203680,0.67,138.82,138.79,7.40490092]
[1765194203861,0.67,138.82,138.79,7.20490092]
[1765194205068,0.67,138.85,138.81,2.12251446]
[1765194206263,0.67,138.85,138.82,7.20357297]
[1765194207370,7.87204288,138.85,138.82,7.20357297]
[1765194207569,7.87204288,138.85,138.8,2.12251446]
[1765194207570,9.99455734,138.85,138.8,2.12251446]
[1765194207753,9.99455734,138.85,138.8,7.20428224]
[1765194207754,2.79251446,138.84,138.8,7.20428224]
[1765194207954,2.79251446,138.84,138.79,7.20510676]
[1765194207955,2.12251446,138.83,138.79,7.20510676]
[1765194208156,9.99588992,138.83,138.79,7.20510676]
[1765194208359,0.67,138.82,138.78,0.2]
[1765194208562,2.12251446,138.81,138.78,0.2]
[1765194208757,0.67,138.82,138.78,0.2]
[1765194208758,2.79251446,138.82,138.78,0.2]
[1765194208948,0.67,138.81,138.78,7.40556961]
[1765194209375,9.32588992,138.83,138.78,9.72808407]
[1765194209573,0.67,138.81,138.78,9.52808407]
[1765194210478,0.67,138.81,138.78,0.2]
[1765194210677,7.8742103,138.81,138.78,0.2]
[1765194211060,0.67,138.8,138.78,0.2]
[1765194213251,0.67,138.8,138.78,7.40555937]
[1765194213872,7.20377899,138.82,138.78,7.40555937]
[1765194214059,0.67,138.81,138.78,9.52807383]
[1765194214482,0.67,138.81,138.78,7.40555937]
[1765194219274,9.99671948,138.81,138.78,0.2]
[1765194219690,0.67,138.8,138.78,0.2]
[1765194222395,7.20379201,138.82,138.78,7.40555878]
[1765194222597,0.67,138.81,138.78,7.40555878]
[1765194222776,0.67,138.81,138.78,7.60555878]
[1765194222977,0.67,138.82,138.78,9.72807324]
[1765194223187,0.67,138.81,138.78,9.72807324]
[1765194223391,0.67,138.81,138.78,7.40555878]
[1765194224072,7.87433095,138.81,138.78,0.2]
[1765194224496,0.67,138.8,138.78,0.2]
[1765194225098,7.87467105,138.8,138.78,0.2]
[1765194225483,0.67,138.79,138.78,0.2]
[1765194226300,25.11880892,138.78,138.77,0.2]
[1765194226506,27.24132338,138.78,138.76,0.2]
[1765194226794,2.79251446,138.77,138.76,0.2]
[1765194227168,10.69251446,138.77,138.76,0.2]
[1765194227694,2.79251446,138.77,138.76,0.2]
[1765194227997,0.67,138.77,138.76,0.2]
[1765194229894,18.01152737,138.8,138.76,7.4066396]
[1765194229895,9.32757665,138.8,138.76,7.4066396]
[1765194230102,0.67,138.79,138.76,7.4066396]
[1765194230598,0.67,138.79,138.74,0.2]
[1765194230599,18.43137846,138.77,138.74,0.2]
[1765194230779,2.79251446,138.79,138.74,2.98251446]
[1765194231101,2.79251446,138.79,138.75,7.20682999]
[1765194231286,0.66,138.78,138.75,7.20682999]
[1765194231492,0.66,138.78,138.74,7.40756826]
[1765194232000,7.86582906,138.78,138.74,7.40756826]
[1765194232375,7.86582906,138.78,138.74,8.12756826]
[1765194232376,0.66,138.78,138.74,8.12756826]
[1765194232775,7.86578893,138.78,138.74,8.12756826]
[1765194233680,0.66,138.77,138.74,7.40756826]
[1765194234200,3.32563998,138.75,138.74,0.2]
[1765194234599,3.98563998,138.75,138.74,0.2]
[1765194235996,0.66,138.75,138.74,0.2]
[1765194236922,3.98563998,138.75,138.74,0.2]
[1765194238385,11.19284718,138.75,138.74,0.2]
[1765194238781,3.98563998,138.75,138.74,0.2]
[1765194240779,35.40082751,138.77,138.74,0.2]
[1765194241109,3.98563998,138.76,138.74,0.2]
[1765194242897,11.19243438,138.76,138.74,0.2]
[1765194243102,26.84082257,138.77,138.74,0.2]
[1765194243300,0.66,138.76,138.74,0.2]
[1765194245688,0.66,138.77,138.74,7.40764272]
[1765194245900,18.43151718,138.78,138.74,7.40764272]
[1765194246097,0.66,138.76,138.74,7.40764272]
[1765194246296,0.66,138.77,138.74,7.40764272]
[1765194246995,0.66,138.77,138.74,8.09764272]
[1765194248810,10.53151718,138.78,138.74,8.09764272]
[1765194249025,34.73982295,138.79,138.75,0.69]
[1765194249317,0.66,138.78,138.74,11.4232827]
[1765194249619,0.66,138.78,138.74,8.09764272]
[1765194249820,0.66,138.78,138.74,7.40764272]
[1765194250009,0.66,138.78,138.75,7.89700596]
[1765194250617,0.66,138.78,138.75,7.20700596]
[1765194250819,0.66,138.78,138.75,7.89700596]
[1765194251519,7.8656676,138.78,138.75,7.89700596]
[1765194251692,0.66,138.78,138.75,7.89700596]
[1765194251894,7.9,138.79,138.76,0.69]
[1765194252110,0.66,138.79,138.75,10.53264594]
[1765194252292,0.66,138.79,138.75,11.22264594]
[1765194256396,0.66,138.79,138.75,7.89700596]
[1765194256820,10.53038758,138.8,138.75,28.55066395]
[1765194256998,7.8647476,138.8,138.76,4.01563998]
[1765194257203,7.8647476,138.8,138.76,11.22188574]
[1765194257401,16.308864,138.82,138.78,3.32563998]
[1765194257619,0.66,138.81,138.78,3.32563998]
[1765194258122,0.66,138.81,138.78,0.69]
[1765194258310,0.66,138.81,138.77,11.91563998]
[1765194258621,0.66,138.81,138.78,3.32563998]
[1765194258821,7.86457143,138.81,138.77,11.91563998]
[1765194259225,7.86457143,138.81,138.77,18.43177478]
[1765194259443,0.66,138.8,138.77,15.1061348]
[1765194260625,0.66,138.8,138.77,15.7961348]
[1765194261414,0.66,138.8,138.77,15.1061348]
[1765194261616,16.978864,138.84,138.79,3.32563998]
[1765194261814,3.32563998,138.88,138.82,3.32563998]
[1765194262007,0.67,138.85,138.82,3.32563998]
[1765194262634,0.67,138.85,138.82,10.5286944]
[1765194263924,16.978864,138.86,138.83,3.32563998]
[1765194264518,12.1355849,138.87,138.82,3.32563998]
[1765194264719,3.99563998,138.85,138.81,7.9]
[1765194265113,0.67,138.84,138.8,11.22563998]
[1765194265311,0.67,138.84,138.8,15.10437563]
[1765194266727,7.87263381,138.84,138.8,18.43001561]
[1765194267215,0.67,138.83,138.8,15.10437563]
[1765194268301,11.22563998,138.86,138.81,3.32563998]
[1765194268530,0.67,138.84,138.81,3.32563998]
[1765194269533,0.67,138.84,138.8,37.14154298]
[1765194269711,27.50706016,138.84,138.8,7.20437563]
[1765194270101,0.67,138.83,138.8,7.20437563]
[1765194271122,3.99563998,138.83,138.8,7.20437563]
[1765194271319,0.67,138.82,138.8,7.20437563]
[1765194271512,0.67,138.82,138.79,15.10502248]
[1765194272114,0.67,138.82,138.79,15.80502248]
[1765194272514,0.67,138.83,138.79,19.13066246]
[1765194273434,0.67,138.83,138.79,15.80502248]
[1765194277340,3.99563998,138.83,138.79,15.80502248]
[1765194278920,11.19921295,138.82,138.78,7.20563314]
[1765194279127,11.19921295,138.82,138.78,15.10563314]
[1765194279327,0.67,138.81,138.78,15.80563314]
[1765194279530,0.67,138.81,138.78,15.10563314]
[1765194279721,0.67,138.81,138.78,15.80563314]
[1765194279922,0.67,138.81,138.78,15.10563314]
[1765194280440,3.99563998,138.81,138.78,15.10563314]
[1765194280633,3.99563998,138.81,138.77,7.9]
[1765194280634,3.32563998,138.8,138.77,7.9]
[1765194280834,3.99563998,138.8,138.77,15.10607295]
[1765194281536,0.67,138.79,138.77,7.9]
[1765194281739,0.67,138.79,138.76,7.20651808]
[1765194282042,0.67,138.79,138.76,15.10651808]
[1765194282227,0.67,138.79,138.76,15.80651808]
[1765194286223,0.67,138.8,138.76,19.13215806]
[1765194288641,7.87461357,138.8,138.76,19.13215806]
[1765194290144,0.67,138.79,138.76,19.13215806]
[1765194291038,10.52984813,138.81,138.76,18.43215806]
[1765194291344,0.67,138.8,138.77,0.66]
[1765194292146,0.67,138.8,138.78,7.20564922]
[1765194292547,16.978864,138.84,138.79,3.98563998]
[1765194292726,16.978864,138.84,138.79,2.78663272]
[1765194292931,2.79663272,138.83,138.79,0.66]
[1765194293333,0.67,138.82,138.79,0.66]
[1765194294042,0.67,138.82,138.8,7.20461095]
[1765194298058,0.67,138.82,138.8,9.33124367]
[1765194298430,0.67,138.82,138.79,9.33152004]
[1765194298857,0.67,138.82,138.79,10.00152004]
[1765194300232,0.67,138.82,138.79,7.20488732]
[1765194300432,0.67,138.82,138.79,9.33152004]
[1765194300656,0.67,138.82,138.79,10.00152004]
[1765194301265,23.5116709,138.84,138.8,8.57]
[1765194301557,0.66,138.83,138.8,7.9]
[1765194302158,7.86335247,138.83,138.8,7.9]
[1765194302535,0.66,138.82,138.8,7.9]
[1765194302935,0.66,138.82,138.8,15.10458651]
[1765194304066,0.66,138.82,138.8,7.9]
[1765194304263,7.86371409,138.82,138.8,7.9]
[1765194304769,0.66,138.81,138.8,7.9]
[1765194306446,0.66,138.81,138.78,17.90182238]
[1765194307579,44.3100289,138.81,138.75,18.01348938]
[1765194307742,2.12663272,138.77,138.74,7.40729423]
[1765194307942,0.66,138.76,138.74,7.40729423]
[1765194308358,2.78663272,138.77,138.74,7.40729423]
[1765194308951,0.66,138.77,138.74,7.40729423]
[1765194310361,0.66,138.77,138.74,8.07729423]
[1765194310562,0.66,138.77,138.74,7.40729423]
[1765194310869,0.66,138.77,138.74,8.07729423]
[1765194311371,7.20591715,138.78,138.74,9.53392695]
[1765194311570,42.22097043,138.8,138.75,2.79663272]
[1765194311571,31.41364384,138.8,138.75,2.79663272]
[1765194311872,0.66,138.79,138.75,2.79663272]
[1765194312183,2.78663272,138.79,138.75,0.67]
[1765194312675,0.66,138.78,138.76,7.2066878]
[1765194312851,2.78663272,138.79,138.76,7.2066878]
[1765194313049,0.66,138.79,138.76,7.2066878]
[1765194313372,2.78663272,138.79,138.76,7.2066878]
[1765194313566,2.12663272,138.8,138.76,7.2066878]
[1765194313763,2.12663272,138.8,138.77,0.67]
[1765194313951,9.33093192,138.81,138.77,0.67]
[1765194314151,2.78663272,138.8,138.77,7.9]
[1765194314351,2.78663272,138.8,138.77,8.57]
[1765194314872,0.66,138.8,138.77,15.77607572]
[1765194315060,2.78663272,138.8,138.77,15.10607572]
[1765194315256,9.99149224,138.8,138.77,7.9]
[1765194315448,0.66,138.79,138.77,7.9]
[1765194315752,2.78663272,138.79,138.75,7.20707635]
[1765194315953,2.12663272,138.78,138.75,7.9]
[1765194316158,2.78663272,138.78,138.75,7.9]
[1765194316371,0.66,138.77,138.75,7.9]
[1765194316874,0.66,138.77,138.74,7.40753686]
[1765194320872,0.66,138.77,138.74,8.07753686]
[1765194321364,0.66,138.77,138.74,7.40753686]
[1765194321766,0.72,138.77,138.74,7.40753686]
[1765194322279,0.72,138.77,138.74,8.08753686]
[1765194325974,0.72,138.77,138.74,7.40753686]
[1765194326282,2.12663272,138.76,138.74,0.2]
[1765194326577,7.92618592,138.77,138.74,0.2]
[1765194326761,9.33250972,138.78,138.74,8.08771757]
[1765194326967,10.05250972,138.78,138.74,8.08771757]
[1765194327167,9.33250972,138.78,138.74,8.08771757]
[1765194327371,0.72,138.77,138.74,8.08771757]
[1765194328978,10.05316027,138.77,138.74,0.2]
[1765194329986,7.92652755,138.77,138.74,0.2]
[1765194330283,0.72,138.76,138.74,0.2]
[1765194330481,7.92652755,138.77,138.74,7.40772598]
[1765194330871,0.72,138.76,138.74,7.40772598]
[1765194332863,0.72,138.76,138.74,0.2]
[1765194333064,7.92672132,138.76,138.74,0.2]
[1765194333286,10.05335404,138.76,138.74,0.2]
[1765194333466,0.72,138.75,138.74,0.2]
[1765194333868,2.84663272,138.75,138.74,0.2]
[1765194334082,23.51520706,138.77,138.74,0.2]
[1765194334287,0.72,138.76,138.74,0.2]
[1765194335187,20.75914881,138.78,138.74,8.08768558]
[1765194335369,9.33251609,138.78,138.74,8.08768558]
[1765194335569,0.72,138.77,138.74,8.08768558]
[1765194335766,0.72,138.78,138.74,9.5343183]
[1765194335969,0.72,138.78,138.75,0.68]
[1765194336578,0.72,138.78,138.74,10.2143183]
[1765194338491,15.10534398,138.79,138.75,0.68]
[1765194338681,7.92534398,138.79,138.75,0.68]
[1765194338989,0.72,138.78,138.74,0.2]
[1765194339196,0.72,138.78,138.74,0.88]
[1765194339375,0.72,138.78,138.74,8.08725168]
[1765194339576,0.72,138.78,138.74,10.2138844]
[1765194339779,0.72,138.78,138.75,7.2071703]
[1765194339997,0.72,138.78,138.75,7.8871703]
[1765194340195,0.72,138.79,138.75,17.23380302]
[1765194340491,7.92481761,138.8,138.76,2.80663272]
[1765194340789,0.72,138.79,138.76,2.80663272]
[1765194340991,0.72,138.79,138.76,10.0129702]
[1765194341177,7.92519076,138.79,138.76,7.88633748]
[1765194341382,7.92519076,138.79,138.76,7.20633748]
[1765194341792,0.72,138.79,138.76,7.20633748]
[1765194350694,18.43549672,138.78,138.75,15.1072072]
[1765194351207,0.66,138.77,138.75,15.1072072]
[1765194353100,0.66,138.77,138.75,7.9]
[1765194353300,0.66,138.77,138.74,7.40752501]
[1765194353708,0.66,138.77,138.74,8.09752501]
[1765194354093,0.66,138.77,138.74,7.40752501]
[1765194354505,0.66,138.77,138.74,8.09752501]
[1765194355286,0.66,138.77,138.74,7.40752501]
[1765194356689,7.86642585,138.77,138.74,0.2]
[1765194357086,0.66,138.76,138.74,0.2]
[1765194357901,7.86707787,138.76,138.74,0.2]
[1765194358096,0.66,138.75,138.74,0.2]
[1765194360709,11.19305204,138.75,138.74,0.2]
[1765194361010,27.50191604,138.75,138.74,0.2]
[1765194361702,30.38802304,138.75,138.74,0.2]
[1765194362086,39.19796796,138.75,138.74,0.2]
[1765194362503,22.88910396,138.75,138.74,0.2]
[1765194365287,22.88910396,138.75,138.74,1e-08]
[1765194366785,16.308864,138.71,138.69,0.2]
[1765194367010,3.32584484,138.7,138.69,0.2]
[1765194367197,4.02584484,138.7,138.69,0.2]
[1765194367393,6.91299341,138.7,138.69,0.2]
[1765194367598,4.02584484,138.7,138.69,0.2]
[1765194368794,11.23565017,138.7,138.69,0.2]
[1765194370190,20.04559509,138.7,138.69,0.2]
[1765194371504,22.93316051,138.7,138.69,0.2]
[1765194373222,10.79737075,138.7,138.69,0.2]
[1765194373516,27.94559509,138.7,138.69,0.2]
[1765194373819,44.25445909,138.7,138.69,0.2]
[1765194374622,47.14181607,138.7,138.69,0.2]
[1765194381118,8.80994492,138.69,138.67,0.2]
[1765194381324,11.22584484,138.68,138.67,0.2]
[1765194381633,19.14668995,138.68,138.67,0.2]
[1765194384739,4.03584484,138.68,138.67,0.2]
[1765194385314,12.84578976,138.68,138.67,1e-08]
[1765194386512,15.73377214,138.68,138.67,1e-08]
[1765194386733,22.94461725,138.68,138.67,1e-08]
[1765194386927,8.80994492,138.67,138.65,0.2]
[1765194387131,11.22584484,138.66,138.65,0.2]
[1765194387443,20.74578976,138.66,138.65,1e-08]
[1765194387645,23.63439781,138.66,138.65,1e-08]
[1765194388523,23.63439781,138.66,138.64,1e-08]
[1765194388724,20.05819509,138.65,138.64,1e-08]
[1765194389318,22.94701175,138.65,138.64,1e-08]
[1765194390211,22.94701175,138.65,138.63,0.2]
[1765194390212,128.56285659,138.65,138.63,1e-08]
[1765194390412,128.56285659,138.65,138.6,0.2]
[1765194390413,16.308864,138.61,138.6,0.2]
[1765194390637,34.74919552,138.61,138.6,0.2]
[1765194390937,30.9416972,138.61,138.6,0.88]
[1765194391130,7.9,138.62,138.6,0.88]
[1765194391332,3.32584484,138.63,138.61,0.68]
[1765194391921,10.53948772,138.63,138.61,0.68]
[1765194392515,27.53470884,138.64,138.61,0.68]
[1765194392731,34.74770926,138.64,138.61,0.68]
[1765194392934,31.42186442,138.64,138.61,0.68]
[1765194393357,24.208864,138.64,138.61,0.68]
[1765194393520,15.11255503,138.65,138.61,7.89448599]
[1765194393724,18.43839987,138.65,138.61,7.89448599]
[1765194393913,3.32584484,138.64,138.62,0.68]
[1765194394848,10.53922924,138.64,138.62,0.68]
[1765194395817,7.2133844,138.64,138.62,0.68]
[1765194396033,10.53922924,138.64,138.62,0.68]
[1765194396418,7.2133844,138.64,138.62,0.68]
[1765194397927,16.308864,138.66,138.62,11.21977354]
[1765194398231,11.22584484,138.65,138.62,0.68]
[1765194398445,3.32584484,138.64,138.63,0.68]
[1765194399230,3.32584484,138.64,138.6,7.41452097]
[1765194399231,3.32584484,138.64,138.61,0.68]
[1765194400144,7.21344586,138.63,138.61,0.68]
[1765194400444,10.53897485,138.64,138.61,0.68]
[1765194401743,19.63470884,138.62,138.6,0.2]
[1765194401945,18.44033152,138.61,138.6,0.2]
[1765194402147,11.22584484,138.61,138.6,0.2]
[1765194402340,18.44033152,138.61,138.6,0.2]
[1765194403034,19.15033152,138.61,138.6,0.2]
[1765194403231,27.96027644,138.61,138.6,0.2]
[1765194403922,19.15033152,138.61,138.6,0.2]
[1765194404244,27.96027644,138.61,138.6,0.2]
[1765194404636,18.44033152,138.61,138.6,0.2]
[1765194404834,19.15033152,138.61,138.6,0.2]
[1765194405041,24.6344316,138.61,138.6,0.2]
[1765194405227,23.9244316,138.61,138.6,0.2]
[1765194405426,27.96027644,138.61,138.6,0.2]
[1765194407745,44.26914044,138.61,138.6,0.2]
[1765194407939,35.45919552,138.61,138.6,0.2]
[1765194408143,34.74919552,138.61,138.6,0.2]
[1765194408742,34.74919552,138.61,138.6,0.88]
[1765194408949,34.74919552,138.61,138.6,0.2]
[1765194409252,31.42335068,138.61,138.6,0.2]
[1765194409578,34.74919552,138.61,138.6,0.88]
[1765194409850,34.74919552,138.61,138.6,0.2]
[1765194410027,34.74919552,138.61,138.6,0.88]
[1765194410028,7.9,138.61,138.6,0.88]
[1765194410433,18.43977566,138.63,138.6,0.88]
[1765194410751,18.43977566,138.63,138.61,0.68]
[1765194411250,15.11393082,138.63,138.61,0.68]
[1765194411749,18.43977566,138.63,138.61,0.68]
[1765194411947,7.9,138.63,138.61,0.68]
[1765194412149,23.52211859,138.64,138.61,0.68]
[1765194413630,26.84796343,138.64,138.61,0.68]
[1765194414450,23.52211859,138.64,138.61,0.68]
[1765194415364,23.52211859,138.64,138.42,8.07563629]
[1765194415365,75.0,138.58,138.42,8.07563629]
[1765194415572,8.80994492,138.42,138.4,0.43265874]
[1765194415857,16.308864,138.38,138.25,7.08]
[1765194416039,3.32584484,138.33,138.25,7.08]
[1765194416362,3.32584484,138.28,138.21,8.16057012]
[1765194416527,4.83375591,138.27,138.24,7.23372063]
[1765194416732,5.58182185,138.3,138.22,18.08702015]
[1765194417155,0.99999999,138.32,138.25,12.81507427]
[1765194417562,0.99999999,138.33,138.26,8.80994492]
[1765194417750,13.81057555,138.34,138.26,17.39994492]
[1765194417949,0.99999999,138.34,138.31,5.58182185]
[1765194418158,0.99999999,138.36,138.27,0.69]
[1765194418345,0.99999999,138.36,138.28,0.69]
[1765194418547,0.99999999,138.35,138.32,5.58182185]
[1765194418938,0.99999999,138.35,138.33,0.69]
[1765194419246,0.99999999,138.36,138.33,6.27182185]
[1765194419559,8.22764884,138.36,138.33,6.27182185]